[Event "Open Nuevo Centro. Jornada 2"]
[Site "Chess.com"]
[Date "2020.06.26"]
[Round "4"]
[White "Sanchez Saez, Francisco"]
[Black "Clement Gómez, José Antonio"]
[Result "1/2-1/2"]
[WhiteElo "2296"]
[BlackElo "2480"]
[TimeControl "180+2"]
[EndTime "11:16:15 PDT"]
[Termination "Partida en tablas por mutuo acuerdo"]

1. g3 {[%clk 0:03:01.9]} 1... Nf6 {[%clk 0:02:57.3]} 2. Bg2 {[%clk 0:03:02.4]}
2... c5 {[%clk 0:02:55.8]} 3. Nf3 {[%clk 0:03:02.1]} 3... g6 {[%clk 0:02:55.6]}
4. O-O {[%clk 0:03:02.6]} 4... Bg7 {[%clk 0:02:56.4]} 5. c4 {[%clk 0:02:57.3]}
5... O-O {[%clk 0:02:47.5]} 6. d4 {[%clk 0:02:58.2]} 6... d6 {[%clk 0:02:43.7]}
7. Nc3 {[%clk 0:02:52.2]} 7... Nc6 {[%clk 0:02:44.3]} 8. dxc5 {[%clk 0:02:40.6]}
8... dxc5 {[%clk 0:02:46.2]} 9. Qxd8 {[%clk 0:02:40]} 9... Rxd8 {[%clk
0:02:46.1]} 10. Bf4 {[%clk 0:02:29.3]} 10... Be6 {[%clk 0:02:42.9]} 11. Rac1
{[%clk 0:02:07.9]} 11... Bxc4 {[%clk 0:02:15.6]} 12. b3 {[%clk 0:02:06.8]} 12...
Ba6 {[%clk 0:02:08.1]} 13. Ne5 {[%clk 0:01:41.6]} 13... Nd4 {[%clk 0:01:49.5]}
14. Rfe1 {[%clk 0:01:30.7]} 14... Nh5 {[%clk 0:01:49.1]} 15. e3 {[%clk
0:01:11.4]} 15... Nxf4 {[%clk 0:01:45.8]} 16. exf4 {[%clk 0:00:57.7]} 16... Rac8
{[%clk 0:01:30.4]} 17. Nc4 {[%clk 0:00:48.7]} 17... e6 {[%clk 0:01:23.6]} 18.
Ne4 {[%clk 0:00:45.1]} 18... b6 {[%clk 0:01:18.5]} 19. g4 {[%clk 0:00:38.3]}
19... Rd7 {[%clk 0:00:53.3]} 20. g5 {[%clk 0:00:23.3]} 20... Rcd8 {[%clk
0:00:30.3]} 21. Ne5 {[%clk 0:00:23.7]} 21... Rc7 {[%clk 0:00:25.9]} 22. Nc4
{[%clk 0:00:23.3]} 22... Nc6 {[%clk 0:00:25.6]} 23. Red1 {[%clk 0:00:21.2]}
23... Bd4 {[%clk 0:00:22.7]} 24. Bf3 {[%clk 0:00:16.1]} 24... Kg7 {[%clk
0:00:23.4]} 25. Kg2 {[%clk 0:00:17]} 25... Rcd7 {[%clk 0:00:24]} 26. h4 {[%clk
0:00:14.7]} 26... Nb4 {[%clk 0:00:23.5]} 27. Rd2 {[%clk 0:00:12.9]} 27... Nd5
{[%clk 0:00:23.8]} 28. Kg3 {[%clk 0:00:12.8]} 28... Ne7 {[%clk 0:00:18.8]} 29.
Kg2 {[%clk 0:00:12.6]} 29... Nf5 {[%clk 0:00:20.2]} 30. h5 {[%clk 0:00:12.9]}
30... h6 {[%clk 0:00:21.3]} 31. Rh1 {[%clk 0:00:12.8]} 31... hxg5 {[%clk
0:00:21.7]} 32. fxg5 {[%clk 0:00:12.3]} 32... Bb7 {[%clk 0:00:22.4]} 33. h6+
{[%clk 0:00:10]} 33... Kh7 {[%clk 0:00:23.4]} 34. Nf6+ {[%clk 0:00:04.5]} 34...
Bxf6 {[%clk 0:00:23.3]} 35. Rxd7 {[%clk 0:00:02.8]} 35... Rxd7 {[%clk
0:00:25.2]} 36. gxf6 {[%clk 0:00:03.3]} 36... Bxf3+ {[%clk 0:00:26.3]} 37. Kxf3
{[%clk 0:00:05]} 37... Rd5 {[%clk 0:00:22.9]} 38. Ke4 {[%clk 0:00:02.8]} 38...
g5 {[%clk 0:00:22]} 39. f4 {[%clk 0:00:03.6]} 39... Rd4+ {[%clk 0:00:20.6]} 40.
Ke5 {[%clk 0:00:04]} 40... Rxf4 {[%clk 0:00:20.2]} 41. Rd1 {[%clk 0:00:04.5]}
41... Nxh6 {[%clk 0:00:20.8]} 42. Rd7 {[%clk 0:00:05.1]} 42... Ng4+ {[%clk
0:00:21]} 43. Kd6 {[%clk 0:00:05.9]} 43... Kg6 {[%clk 0:00:22.2]} 44. Ne5+
{[%clk 0:00:06.3]} 44... Nxe5 {[%clk 0:00:21]} 45. Kxe5 {[%clk 0:00:08.2]} 45...
Rf5+ {[%clk 0:00:22.9]} 46. Ke4 {[%clk 0:00:09]} 46... Rxf6 {[%clk 0:00:24.8]}
47. Rxa7 {[%clk 0:00:10.3]} 47... g4 {[%clk 0:00:26]} 48. Rb7 {[%clk 0:00:11.6]}
48... g3 {[%clk 0:00:27.1]} 49. Rb8 {[%clk 0:00:13.2]} 49... g2 {[%clk
0:00:27.8]} 50. Rg8+ {[%clk 0:00:14.3]} 50... Kh7 {[%clk 0:00:28.8]} 51. Rxg2
{[%clk 0:00:16.2]} 51... Rg6 {[%clk 0:00:29.4]} 52. Rf2 {[%clk 0:00:16.7]} 52...
Kg7 {[%clk 0:00:29.6]} 53. Ke5 {[%clk 0:00:15.3]} 53... Rg5+ {[%clk 0:00:27.1]}
54. Kd6 {[%clk 0:00:15.9]} 54... Rf5 {[%clk 0:00:24.6]} 55. Rg2+ {[%clk
0:00:15.9]} 55... Kf6 {[%clk 0:00:25.7]} 56. Kc6 {[%clk 0:00:17.8]} 56... e5
{[%clk 0:00:27]} 57. Kxb6 {[%clk 0:00:18.2]} 57... e4 {[%clk 0:00:28.7]} 58. a4
{[%clk 0:00:18.5]} 58... e3 {[%clk 0:00:27.7]} 59. Re2 {[%clk 0:00:17.5]} 59...
Re5 {[%clk 0:00:28.7]} 60. a5 {[%clk 0:00:18.2]} 60... Kf5 {[%clk 0:00:29.4]}
61. a6 {[%clk 0:00:19.5]} 61... Ke4 {[%clk 0:00:30.5]} 62. a7 {[%clk 0:00:20.3]}
62... Re8 {[%clk 0:00:31.6]} 63. Kxc5 {[%clk 0:00:15.7]} 63... Kd3 {[%clk
0:00:31.6]} 64. Re1 {[%clk 0:00:14.5]} 64... Kd2 {[%clk 0:00:31.9]} 65. Ra1
{[%clk 0:00:14.7]} 65... f5 {[%clk 0:00:31]} 66. a8=Q {[%clk 0:00:13.2]} 66...
Rxa8 {[%clk 0:00:30.5]} 67. Rxa8 {[%clk 0:00:15.1]} 67... e2 {[%clk 0:00:31.5]}
68. Rd8+ {[%clk 0:00:14.9]} 68... Kc2 {[%clk 0:00:29.3]} 69. Re8 {[%clk
0:00:16.8]} 69... Kd2 {[%clk 0:00:30]} 70. Rd8+ {[%clk 0:00:14.3]} 70... Kc2
{[%clk 0:00:30.9]} 71. Re8 {[%clk 0:00:16.2]} 71... Kd3 {[%clk 0:00:23.5]} 72.
b4 {[%clk 0:00:10.7]} 72... f4 {[%clk 0:00:20.6]} 73. Rd8+ {[%clk 0:00:11]}
73... Kc2 {[%clk 0:00:18.8]} 74. Re8 {[%clk 0:00:06.5]} 74... Kd2 {[%clk
0:00:19.2]} 75. b5 {[%clk 0:00:08.4]} 75... e1=Q {[%clk 0:00:18]} 76. Rxe1
{[%clk 0:00:08.2]} 76... Kxe1 {[%clk 0:00:19.9]} 77. b6 {[%clk 0:00:09.4]} 77...
f3 {[%clk 0:00:21.8]} 78. b7 {[%clk 0:00:10.9]} 78... f2 {[%clk 0:00:23.7]} 79.
b8=Q {[%clk 0:00:12.4]} 79... f1=Q {[%clk 0:00:25.6]} 80. Qe5+ {[%clk
0:00:09.2]} 80... Qe2 {[%clk 0:00:25.4]} 81. Qa1+ {[%clk 0:00:09.5]} 81... Kf2
{[%clk 0:00:25.4]} 1/2-1

[Event "Open Nuevo Centro. Jornada 2"]
[Site "Chess.com"]
[Date "2020.06.26"]
[Round "5"]
[White "Gálvez Torres, Guillermo"]
[Black "Roca Cruz, Rafael"]
[Result "0-1"]
[WhiteElo "1095"]
[BlackElo "1724"]
[TimeControl "180+2"]
[EndTime "11:17:51 PDT"]
[Termination "Victoria de RafaRocaCruz por abandono"]

1. c4 {[%clk 0:03:01]} 1... e5 {[%clk 0:02:59.8]} 2. g3 {[%clk 0:03:01.7]} 2...
Nc6 {[%clk 0:03:01.1]} 3. Bg2 {[%clk 0:03:01.7]} 3... Bc5 {[%clk 0:03:02.2]} 4.
e3 {[%clk 0:03:00.7]} 4... d6 {[%clk 0:03:00.3]} 5. Ne2 {[%clk 0:03:01.2]} 5...
a6 {[%clk 0:03:00.9]} 6. Nbc3 {[%clk 0:02:59.5]} 6... Nf6 {[%clk 0:02:50.3]} 7.
b3 {[%clk 0:02:59.5]} 7... O-O {[%clk 0:02:49.7]} 8. Bb2 {[%clk 0:02:58.9]} 8...
Bg4 {[%clk 0:02:50.4]} 9. Qc2 {[%clk 0:02:56.5]} 9... Nb4 {[%clk 0:02:44]} 10.
O-O {[%clk 0:02:50.9]} 10... Nxc2 {[%clk 0:02:44.4]} 0

[Event "Open Nuevo Centro. Jornada 2"]
[Site "Chess.com"]
[Date "2020.06.26"]
[Round "5"]
[White "Ulla Centelles, Llorens"]
[Black "Valverde Caballero, Rafael"]
[Result "0-1"]
[WhiteElo "1577"]
[BlackElo "1873"]
[TimeControl "180+2"]
[EndTime "11:18:31 PDT"]
[Termination "Victoria de Eumenes por abandono"]

1. e4 {[%clk 0:03:01.9]} 1... c5 {[%clk 0:02:44.6]} 2. d3 {[%clk 0:03:02.8]}
2... g6 {[%clk 0:02:41.5]} 3. Nf3 {[%clk 0:03:03.7]} 3... Bg7 {[%clk 0:02:42.8]}
4. Be2 {[%clk 0:03:04.7]} 4... Nc6 {[%clk 0:02:42.4]} 5. O-O {[%clk 0:03:05.5]}
5... d6 {[%clk 0:02:43.4]} 6. Nc3 {[%clk 0:03:06.5]} 6... e6 {[%clk 0:02:44.1]}
7. Bd2 {[%clk 0:03:04.2]} 7... Nge7 {[%clk 0:02:44.7]} 8. Qc1 {[%clk 0:03:05.1]}
8... h6 {[%clk 0:02:42.7]} 9. Bg5 {[%clk 0:03:06.8]} 9... a6 {[%clk 0:02:38.8]}
10. Bh4 {[%clk 0:03:06.2]} 10... Qc7 {[%clk 0:02:34.8]} 11. Bg3 {[%clk
0:03:05.8]} 11... O-O {[%clk 0:02:25.3]} 12. e5 {[%clk 0:02:59.2]} 12... dxe5
{[%clk 0:02:21.8]} 13. Ne4 {[%clk 0:02:59.8]} 13... b6 {[%clk 0:02:17.9]} 14.
Nfd2 {[%clk 0:02:58.3]} 14... f5 {[%clk 0:02:13.2]} 0

[Event "Open Nuevo Centro. Jornada 2"]
[Site "Chess.com"]
[Date "2020.06.26"]
[Round "5"]
[White "Amorós Pérez, Manuel David"]
[Black "Cinà Asensio, Luca "]
[Result "1-0"]
[WhiteElo "1643"]
[BlackElo "635"]
[TimeControl "180+2"]
[EndTime "11:19:23 PDT"]
[Termination "Victoria de mpad1984 por jaque mate"]

1. e4 {[%clk 0:03:01.9]} 1... e6 {[%clk 0:03:00.6]} 2. Nf3 {[%clk 0:03:02.4]}
2... Nc6 {[%clk 0:03:00.4]} 3. d4 {[%clk 0:03:02.2]} 3... Nb8 {[%clk 0:02:57.7]}
4. Nc3 {[%clk 0:03:03]} 4... c5 {[%clk 0:02:57.5]} 5. d5 {[%clk 0:03:03.5]} 5...
exd5 {[%clk 0:02:53.2]} 6. exd5 {[%clk 0:03:01.2]} 6... Qe7+ {[%clk 0:02:53.2]}
7. Be2 {[%clk 0:03:02]} 7... d6 {[%clk 0:02:50.1]} 8. O-O {[%clk 0:03:02.5]}
8... Nf6 {[%clk 0:02:48.5]} 9. Re1 {[%clk 0:03:03.7]} 9... g6 {[%clk 0:02:42.5]}
10. Bb5+ {[%clk 0:03:04.4]} 10... Bd7 {[%clk 0:02:38.6]} 11. Bxd7+ {[%clk
0:03:02.8]} 11... Kxd7 {[%clk 0:02:33.4]} 12. Rxe7+ {[%clk 0:03:03.7]} 12...
Bxe7 {[%clk 0:02:32.8]} 13. Bg5 {[%clk 0:03:04.8]} 13... Ng4 {[%clk 0:02:27.8]}
14. Bxe7 {[%clk 0:03:05.3]} 14... Kxe7 {[%clk 0:02:27.9]} 15. h3 {[%clk
0:03:06.8]} 15... Ne5 {[%clk 0:02:16.9]} 16. Nxe5 {[%clk 0:03:07.1]} 16... dxe5
{[%clk 0:02:14.8]} 17. Qe2 {[%clk 0:03:07.2]} 17... Kd7 {[%clk 0:02:14.2]} 18.
Qxe5 {[%clk 0:03:07.5]} 18... f6 {[%clk 0:02:16.1]} 19. Qxf6 {[%clk 0:03:07.9]}
19... Na6 {[%clk 0:02:12.7]} 20. Qe6+ {[%clk 0:03:07.7]} 20... Kc7 {[%clk
0:02:12.6]} 21. Nb5+ {[%clk 0:03:08.6]} 21... Kd8 {[%clk 0:02:10.9]} 22. d6
{[%clk 0:03:06.1]} 22... Re8 {[%clk 0:02:04]} 23. Qf7 {[%clk 0:03:05.4]} 23...
Kc8 {[%clk 0:02:00.8]} 24. d7+ {[%clk 0:03:02.8]} 24... Kd8 {[%clk 0:01:57.4]}
25. dxe8=Q# {[%clk 0:03:02.8]} 1

[Event "Open Nuevo Centro. Jornada 2"]
[Site "Chess.com"]
[Date "2020.06.26"]
[Round "5"]
[White "Sanchis Bon, Sergi"]
[Black "Tormos Beltran, Maite"]
[Result "0-1"]
[WhiteElo "1005"]
[BlackElo "1463"]
[TimeControl "180+2"]
[EndTime "11:19:35 PDT"]
[Termination "Victoria de TORBEL79 por abandono"]

1. e4 {[%clk 0:03:01.9]} 1... d5 {[%clk 0:03:00.3]} 2. exd5 {[%clk 0:03:02.1]}
2... Qxd5 {[%clk 0:03:01]} 3. Nc3 {[%clk 0:03:02.2]} 3... Qd6 {[%clk 0:03:02]}
4. Qf3 {[%clk 0:02:53]} 4... Nf6 {[%clk 0:03:02]} 5. g4 {[%clk 0:02:49.3]} 5...
c6 {[%clk 0:02:55.5]} 6. h3 {[%clk 0:02:47]} 6... Nbd7 {[%clk 0:02:48.9]} 7. g5
{[%clk 0:02:41.4]} 7... Ne5 {[%clk 0:02:48.3]} 8. Qf4 {[%clk 0:02:39]} 8... Nd5
{[%clk 0:02:48]} 9. Nxd5 {[%clk 0:02:36.7]} 9... cxd5 {[%clk 0:02:47.9]} 10. c4
{[%clk 0:02:27.1]} 10... Nd3+ {[%clk 0:02:46]} 11. Bxd3 {[%clk 0:02:25.2]} 11...
Qxf4 {[%clk 0:02:46.5]} 12. cxd5 {[%clk 0:02:20.9]} 12... Bf5 {[%clk 0:02:45.5]}
13. Bxf5 {[%clk 0:02:20.9]} 13... Qxf5 {[%clk 0:02:46.2]} 14. Ne2 {[%clk
0:02:20.8]} 14... Qxd5 {[%clk 0:02:46.7]} 15. Nf4 {[%clk 0:02:19.5]} 15... Qxh1+
{[%clk 0:02:46.7]} 16. Ke2 {[%clk 0:01:39.2]} 16... O-O-O {[%clk 0:02:46.1]} 0

[Event "Open Nuevo Centro. Jornada 2"]
[Site "Chess.com"]
[Date "2020.06.26"]
[Round "5"]
[White "Perrot, Fabien "]
[Black "Alvarez Usina, Jordi"]
[Result "0-1"]
[WhiteElo "996"]
[BlackElo "1208"]
[TimeControl "180+2"]
[EndTime "11:19:43 PDT"]
[Termination "Victoria de jordi_alvarez por abandono"]

1. d4 {[%clk 0:03:01.9]} 1... d5 {[%clk 0:02:54.3]} 2. Nf3 {[%clk 0:03:00.6]}
2... Nf6 {[%clk 0:02:44.6]} 3. c4 {[%clk 0:03:00.2]} 3... c6 {[%clk 0:02:41.8]}
4. Bg5 {[%clk 0:02:58.4]} 4... Bf5 {[%clk 0:02:37.2]} 5. e3 {[%clk 0:02:55.8]}
5... Nbd7 {[%clk 0:02:29.4]} 6. Nc3 {[%clk 0:02:55.1]} 6... Qb6 {[%clk
0:02:21.5]} 7. b3 {[%clk 0:02:49]} 7... e6 {[%clk 0:02:19.6]} 8. Bxf6 {[%clk
0:02:42.7]} 8... Nxf6 {[%clk 0:02:15.9]} 9. h3 {[%clk 0:02:44.3]} 9... Bb4
{[%clk 0:02:15.1]} 10. Qc1 {[%clk 0:02:33.2]} 10... Qa5 {[%clk 0:02:14]} 11. Kd2
{[%clk 0:02:24.9]} 11... Bxc3+ {[%clk 0:01:55.5]} 12. Qxc3 {[%clk 0:02:23.9]}
12... Ne4+ {[%clk 0:01:55.2]} 0

[Event "Open Nuevo Centro. Jornada 2"]
[Site "Chess.com"]
[Date "2020.06.26"]
[Round "5"]
[White "Donate Moreno, Silvia"]
[Black "Donate Moreno, David"]
[Result "1-0"]
[WhiteElo "1783"]
[BlackElo "1517"]
[TimeControl "180+2"]
[EndTime "11:20:48 PDT"]
[Termination "Victoria de 2camarones por jaque mate"]

1. e4 {[%clk 0:03:01.9]} 1... e5 {[%clk 0:02:55.6]} 2. Nf3 {[%clk 0:03:01.9]}
2... Nc6 {[%clk 0:02:54.6]} 3. Bb5 {[%clk 0:03:02.7]} 3... Nd4 {[%clk
0:02:50.9]} 4. Nxd4 {[%clk 0:03:00.3]} 4... exd4 {[%clk 0:02:46]} 5. c3 {[%clk
0:02:44.4]} 5... dxc3 {[%clk 0:02:44.9]} 6. Nxc3 {[%clk 0:02:44.4]} 6... a6
{[%clk 0:02:43.2]} 7. Ba4 {[%clk 0:02:42]} 7... Bc5 {[%clk 0:02:37.7]} 8. d4
{[%clk 0:02:40.7]} 8... Ba7 {[%clk 0:02:35.7]} 9. O-O {[%clk 0:02:38.2]} 9...
Ne7 {[%clk 0:02:34.3]} 10. Bb3 {[%clk 0:02:10.5]} 10... O-O {[%clk 0:02:34.5]}
11. Be3 {[%clk 0:02:06.5]} 11... c6 {[%clk 0:02:29.3]} 12. f4 {[%clk 0:01:57.4]}
12... d5 {[%clk 0:02:30.1]} 13. exd5 {[%clk 0:01:52.6]} 13... Nxd5 {[%clk
0:02:29.7]} 14. Nxd5 {[%clk 0:01:52.9]} 14... cxd5 {[%clk 0:02:30.7]} 15. Qf3
{[%clk 0:01:53.6]} 15... Be6 {[%clk 0:02:31.3]} 16. f5 {[%clk 0:01:54.3]} 16...
Bc8 {[%clk 0:02:28.8]} 17. f6 {[%clk 0:01:39.9]} 17... Be6 {[%clk 0:02:21.2]}
18. fxg7 {[%clk 0:01:38.3]} 18... Re8 {[%clk 0:02:21.6]} 19. Bc2 {[%clk
0:01:33.8]} 19... Bg4 {[%clk 0:01:59.6]} 20. Qxf7# {[%clk 0:01:17.3]} 1

[Event "Open Nuevo Centro. Jornada 2"]
[Site "Chess.com"]
[Date "2020.06.26"]
[Round "5"]
[White "Chernikov, Vladimir"]
[Black "Rodriguez Rodriguez, Joan David "]
[Result "1-0"]
[WhiteElo "2274"]
[BlackElo "1611"]
[TimeControl "180+2"]
[EndTime "11:21:05 PDT"]
[Termination "Victoria de isla88 por abandono"]

1. d4 {[%clk 0:03:01.9]} 1... d5 {[%clk 0:03:00.4]} 2. Nf3 {[%clk 0:03:02.1]}
2... Nf6 {[%clk 0:03:00.6]} 3. Bg5 {[%clk 0:03:01.3]} 3... Nbd7 {[%clk
0:02:56.3]} 4. e3 {[%clk 0:03:01.7]} 4... h6 {[%clk 0:02:56.9]} 5. Bf4 {[%clk
0:03:01.4]} 5... e6 {[%clk 0:02:50.5]} 6. Bd3 {[%clk 0:03:01.5]} 6... Be7 {[%clk
0:02:47.9]} 7. Nbd2 {[%clk 0:03:00.5]} 7... O-O {[%clk 0:02:47.5]} 8. c3 {[%clk
0:02:58.5]} 8... c6 {[%clk 0:02:39.1]} 9. Ne5 {[%clk 0:02:57.9]} 9... Nxe5
{[%clk 0:02:22.9]} 10. dxe5 {[%clk 0:02:59.8]} 10... Nd7 {[%clk 0:02:23.3]} 11.
Qh5 {[%clk 0:02:58]} 11... Bg5 {[%clk 0:02:14.7]} 12. Nf3 {[%clk 0:02:45.3]}
12... Bxf4 {[%clk 0:01:58.7]} 13. exf4 {[%clk 0:02:47.2]} 13... Qe7 {[%clk
0:01:36.8]} 14. g4 {[%clk 0:02:41.8]} 14... Nc5 {[%clk 0:01:33.8]} 15. Bc2
{[%clk 0:02:40.6]} 15... Ne4 {[%clk 0:01:33]} 16. g5 {[%clk 0:02:27.6]} 16...
hxg5 {[%clk 0:01:11.6]} 17. Bxe4 {[%clk 0:02:20.3]} 17... dxe4 {[%clk
0:01:10.5]} 18. Nxg5 {[%clk 0:02:21]} 1

[Event "Open Nuevo Centro. Jornada 2"]
[Site "Chess.com"]
[Date "2020.06.26"]
[Round "5"]
[White "Gil López, Alejandro"]
[Black "Garcia, Jhoel"]
[Result "0-1"]
[WhiteElo "2114"]
[BlackElo "2294"]
[TimeControl "180+2"]
[EndTime "11:21:10 PDT"]
[Termination "Victoria de shoels por abandono"]

1. e4 {[%clk 0:03:01.9]} 1... c5 {[%clk 0:02:59.8]} 2. Nf3 {[%clk 0:03:01.3]}
2... d6 {[%clk 0:03:01.3]} 3. c3 {[%clk 0:03:02.6]} 3... Nf6 {[%clk 0:02:59.8]}
4. Qc2 {[%clk 0:03:03.4]} 4... Nc6 {[%clk 0:02:56.3]} 5. Bc4 {[%clk 0:02:55.5]}
5... e6 {[%clk 0:02:56.4]} 6. d4 {[%clk 0:02:54.6]} 6... cxd4 {[%clk 0:02:54.4]}
7. cxd4 {[%clk 0:02:56.5]} 7... Be7 {[%clk 0:02:49.6]} 8. O-O {[%clk 0:02:54.7]}
8... O-O {[%clk 0:02:42.4]} 9. Nc3 {[%clk 0:02:51]} 9... d5 {[%clk 0:02:34]} 10.
exd5 {[%clk 0:02:50.3]} 10... exd5 {[%clk 0:02:35.1]} 11. Bb3 {[%clk 0:02:47.2]}
11... Bg4 {[%clk 0:02:34.4]} 12. Be3 {[%clk 0:02:33.3]} 12... Bxf3 {[%clk
0:02:33.5]} 13. gxf3 {[%clk 0:02:35.2]} 13... Qd7 {[%clk 0:02:34.1]} 14. Kg2
{[%clk 0:02:07.6]} 14... Rac8 {[%clk 0:02:32.5]} 15. a3 {[%clk 0:02:02.3]} 15...
a6 {[%clk 0:02:30.3]} 16. Rae1 {[%clk 0:01:58.2]} 16... Bd6 {[%clk 0:02:24.2]}
17. Qd3 {[%clk 0:01:50.8]} 17... Bb8 {[%clk 0:02:21.7]} 18. Bg5 {[%clk
0:01:46.3]} 18... Qd6 {[%clk 0:01:50.5]} 19. f4 {[%clk 0:01:46.5]} 19... Nh5
{[%clk 0:01:46.9]} 20. Ne2 {[%clk 0:01:43.8]} 20... h6 {[%clk 0:01:37.9]} 21.
Bh4 {[%clk 0:01:44.5]} 21... Qxf4 {[%clk 0:01:33.9]} 22. Nxf4 {[%clk 0:01:46.4]}
22... Nxf4+ {[%clk 0:01:34.6]} 0

[Event "Open Nuevo Centro. Jornada 2"]
[Site "Chess.com"]
[Date "2020.06.26"]
[Round "5"]
[White "Morata Briones, Carlos"]
[Black "Martínez Cuenca, Jose Andrés"]
[Result "0-1"]
[WhiteElo "830"]
[BlackElo "1092"]
[TimeControl "180+2"]
[EndTime "11:21:12 PDT"]
[Termination "Victoria de JoseAndres2008 por jaque mate"]

1. e4 {[%clk 0:02:53.8]} 1... c5 {[%clk 0:02:59]} 2. Qh5 {[%clk 0:02:53.1]} 2...
d6 {[%clk 0:02:45.4]} 3. Bc4 {[%clk 0:02:46.4]} 3... g6 {[%clk 0:02:44.2]} 4.
Qf3 {[%clk 0:02:46.1]} 4... Nf6 {[%clk 0:02:41.8]} 5. d3 {[%clk 0:02:44.8]} 5...
Bg7 {[%clk 0:02:39.8]} 6. Bg5 {[%clk 0:02:44.7]} 6... O-O {[%clk 0:02:39]} 7.
Bxf6 {[%clk 0:02:40.9]} 7... Bxf6 {[%clk 0:02:39.1]} 8. Nh3 {[%clk 0:02:41.2]}
8... Bd7 {[%clk 0:02:34.1]} 9. c3 {[%clk 0:02:36.7]} 9... Qc8 {[%clk 0:02:33]}
10. d4 {[%clk 0:02:35.2]} 10... cxd4 {[%clk 0:02:32]} 11. cxd4 {[%clk
0:02:34.6]} 11... Bxd4 {[%clk 0:02:29.7]} 12. Ng5 {[%clk 0:02:31.9]} 12... Be6
{[%clk 0:02:06.5]} 13. Nxe6 {[%clk 0:02:27]} 13... fxe6 {[%clk 0:02:07.1]} 14.
Qh3 {[%clk 0:02:20.2]} 14... Bxf2+ {[%clk 0:01:58.4]} 15. Kd1 {[%clk 0:02:17.9]}
15... Qxc4 {[%clk 0:01:48.1]} 16. Qxe6+ {[%clk 0:02:11.3]} 16... Qxe6 {[%clk
0:01:46.5]} 17. Nc3 {[%clk 0:02:10.1]} 17... Qg4+ {[%clk 0:01:43]} 18. Kc1
{[%clk 0:02:06.5]} 18... Be3+ {[%clk 0:01:42.6]} 19. Kc2 {[%clk 0:02:02.6]}
19... Rf2+ {[%clk 0:01:35]} 20. Kb3 {[%clk 0:01:54.6]} 20... Qe6+ {[%clk
0:01:31.8]} 21. Ka3 {[%clk 0:01:52.9]} 21... Bc5+ {[%clk 0:01:29.7]} 22. Ka4
{[%clk 0:01:48.9]} 22... Qc4+ {[%clk 0:01:28.1]} 23. Ka5 {[%clk 0:01:45.5]}
23... Qb4# {[%clk 0:01:25.3]} 0

[Event "Open Nuevo Centro. Jornada 2"]
[Site "Chess.com"]
[Date "2020.06.26"]
[Round "5"]
[White "Camison Zornoza, Cesar"]
[Black "Más Ripoll, Vicente"]
[Result "1-0"]
[WhiteElo "1715"]
[BlackElo "1006"]
[TimeControl "180+2"]
[EndTime "11:21:13 PDT"]
[Termination "Victoria de cczchess por tiempo"]

1. e4 {[%clk 0:03:01.9]} 1... c5 {[%clk 0:02:16.3]} 2. d4 {[%clk 0:02:57.6]}
2... cxd4 {[%clk 0:02:16.9]} 3. c3 {[%clk 0:02:58.3]} 3... dxc3 {[%clk
0:02:17.3]} 4. Nxc3 {[%clk 0:02:59]} 4... e6 {[%clk 0:02:12.8]} 5. Nf3 {[%clk
0:03:00.2]} 5... Bb4 {[%clk 0:02:13.1]} 6. Bc4 {[%clk 0:03:00.5]} 6... Bxc3+
{[%clk 0:02:12.8]} 7. bxc3 {[%clk 0:03:01]} 7... Qc7 {[%clk 0:02:08.7]} 8. Qe2
{[%clk 0:03:01.2]} 8... b5 {[%clk 0:02:05.4]} 9. Bxb5 {[%clk 0:02:41.7]} 9...
Qxc3+ {[%clk 0:02:04.5]} 10. Qd2 {[%clk 0:02:31.3]} 10... Qxa1 {[%clk
0:01:59.5]} 11. O-O {[%clk 0:02:32.2]} 11... Qf6 {[%clk 0:01:42.5]} 12. Bb2
{[%clk 0:02:29.3]} 12... Ne7 {[%clk 0:01:36.3]} 13. Bxf6 {[%clk 0:02:28.2]} 1

[Event "Open Nuevo Centro. Jornada 2"]
[Site "Chess.com"]
[Date "2020.06.26"]
[Round "5"]
[White "Rabbani Perez, Ayoub "]
[Black "Hernández Tomás, Efrén"]
[Result "0-1"]
[WhiteElo "221"]
[BlackElo "1039"]
[TimeControl "180+2"]
[EndTime "11:21:19 PDT"]
[Termination "Victoria de EfrenHT10 por jaque mate"]

1. d4 {[%clk 0:02:59.5]} 1... e6 {[%clk 0:02:59.6]} 2. e3 {[%clk 0:02:58.6]}
2... d5 {[%clk 0:02:59.9]} 3. c3 {[%clk 0:02:55.9]} 3... Nf6 {[%clk 0:02:58]} 4.
Nf3 {[%clk 0:02:55]} 4... Nc6 {[%clk 0:02:54]} 5. Nbd2 {[%clk 0:02:53.1]} 5...
Bd6 {[%clk 0:02:54.6]} 6. Ng5 {[%clk 0:02:43.2]} 6... h6 {[%clk 0:02:44.5]} 7.
Nxf7 {[%clk 0:02:42]} 7... Kxf7 {[%clk 0:02:42.7]} 8. f4 {[%clk 0:02:38]} 8...
Rf8 {[%clk 0:02:43.1]} 9. Nb3 {[%clk 0:02:33.5]} 9... Kg8 {[%clk 0:02:42.2]} 10.
Bb5 {[%clk 0:02:29.4]} 10... Bd7 {[%clk 0:02:40.9]} 11. Rf1 {[%clk 0:02:27.2]}
11... a6 {[%clk 0:02:40.8]} 12. Bd3 {[%clk 0:02:22.8]} 12... Nb4 {[%clk
0:02:38.1]} 13. cxb4 {[%clk 0:02:22.3]} 13... Bxb4+ {[%clk 0:02:35.1]} 14. Kf2
{[%clk 0:02:20]} 14... Ne4+ {[%clk 0:02:30.4]} 15. Kg1 {[%clk 0:02:17.1]} 15...
Qh4 {[%clk 0:02:15]} 16. g3 {[%clk 0:02:14.4]} 16... Qf6 {[%clk 0:01:56.6]} 17.
Bxe4 {[%clk 0:02:07.7]} 17... dxe4 {[%clk 0:01:56.6]} 18. h4 {[%clk 0:02:02]}
18... Bb5 {[%clk 0:01:51.5]} 19. Rf2 {[%clk 0:02:00.4]} 19... Qg6 {[%clk
0:01:49.2]} 20. Nc5 {[%clk 0:01:54.4]} 20... Qxg3+ {[%clk 0:01:44]} 21. Kh1
{[%clk 0:01:50.4]} 21... Qxf2 {[%clk 0:01:37.3]} 22. Nxb7 {[%clk 0:01:45]} 22...
Be2 {[%clk 0:01:37]} 23. h5 {[%clk 0:01:42]} 23... Bxd1 {[%clk 0:01:33.5]} 24.
b3 {[%clk 0:01:33.8]} 24... Bf3# {[%clk 0:01:31.5]} 0